Workbook

Sheet Introduction
G1: =RIGHT(CELL("filename",A1), LEN(CELL("filename",A1)) - SEARCH("]", CELL("filename",A1))) -> Introduction | Q1: =CELL("filename",A1) -> C:\Users\Hugo\Documents\HP ACAD\tns\[HPtn Eval - Option Composer.xlsm]Introduction | R1: =IFERROR(MID(Q1,FIND(CHAR(127),SUBSTITUTE(Q1,"-",CHAR(127), LEN(Q1)-LEN(SUBSTITUTE(Q1,"-",""))))+2,1024),MID(Q1,SEARCH("[",Q1)+1,SEARCH(".",Q1)-SEARCH("[",Q1)-1)) -> Option Composer.xlsm]Introduction
G2: by Hugues Pirotte
D4: Below is a list of the worksheets of the file, by order of appearance: (CTRL+h = back to "Introduction") | H4: =IFERROR(LEFT(R1,SEARCH(".",R1)-1),R1) -> Option Composer
C5: 1 | D5: Introduction
C6: 2 | D6: Option profiler | I6: 1 | J6: On the next tab, you will find a portfolio with 10 possible instruments.
J7: Use the "reset" buttons to clear one instrument and reintroduce manually any parameters you want.
J8: (the buttons are there to avoid you to erase the wrong cells).
I9: 2 | J9: Assets 1 to 7 are assumed to be assets you can add freely together.
J10: Assets 8, 9 and 10 are kept for the demonstration of "delta-gamma-vega" neutrality purposes.
J11: Follow the instructions on the right-hand side of the table to witness the neutrality exercise.

Sheet Option profiler
A1: =IFERROR(LEFT(R1,SEARCH(".",R1)-1),R1) & " > " & RIGHT(P1, LEN(P1) - SEARCH("]", P1)) -> Option Composer > Option profiler | P1: =CELL("filename",A1) -> C:\Users\Hugo\Documents\HP ACAD\tns\[HPtn Eval - Option Composer.xlsm]Option profiler | R1: =IFERROR(MID(P1,FIND(CHAR(127),SUBSTITUTE(P1,"-",CHAR(127), LEN(P1)-LEN(SUBSTITUTE(P1,"-",""))))+2,1024),MID(P1,SEARCH("[",P1)+1,SEARCH(".",P1)-SEARCH("[",P1)-1)) -> Option Composer.xlsm]Option profiler
M3: FOR DELTA | N3: FOR GAMMA-VEGA
D4: assumption | E4: 1 option = 1 underlying | I4: ORIGINAL PORTFOLIO OF INSTRUMENTS | M4: NEUTRALITY | N4: NEUTRALITY
E6: TOTAL (signed & based on number) | F6: 1 | G6: 2 | H6: 3 | I6: 4 | J6: 5 | K6: 6 | L6: 7 | M6: 8 | N6: 9 | O6: 10 | Q6: Delta-gamma-vega neutrality
D7: Amount | F7: 1 | G7: -1 | H7: 1 | I7: -1 | J7: 1 | K7: 1 | L7: 1 | M7: 1 | N7: 1 | O7: 1 | Q7: ! | R7: To gamma-vega hedge:
D8: Instrument type | F8: call | G8: put | H8: call | I8: put | J8: call | K8: put | L8: call | M8: underlying | N8: put | O8: call
D9: S(0) | F9: 50 | G9: 50 | H9: 50 | I9: 50 | J9: 50 | K9: 50 | L9: 50 | M9: 50 | N9: 50 | O9: 50 | Q9: 1 | R9: Clear the amounts of instruments 8, 9 and 10
D10: div yield | F10: 0 | G10: 0 | H10: 0 | I10: 0 | J10: 0 | K10: 0 | L10: 0 | M10: 0 | N10: 0 | O10: 0
D11: K | F11: 50 | G11: 45 | H11: 65 | I11: 60 | J11: 51 | K11: 40 | L11: 55 | M11: 55 | N11: 55 | O11: 45 | Q11: 2 | R11: Use the values obtained by the following system resolution, based on the gammas
D12: s | F12: 0.2 | G12: 0.2 | H12: 0.2 | I12: 0.2 | J12: 0.2 | K12: 0.2 | L12: 0.2 | M12: 0.2 | N12: 0.2 | O12: 0.2 | R12: and vegas of the last two instruments, and based on what need to be achieved at the end,
D13: rf rate | F13: 0.04 | G13: 0.04 | H13: 0.04 | I13: 0.04 | J13: 0.04 | K13: 0.04 | L13: 0.04 | M13: 0.04 | N13: 0.04 | O13: 0.04 | R13: i.e. obtain with those two options the reverse of the current total gamma and vega
D14: T (days) | F14: 90 | G14: 90 | H14: 90 | I14: 90 | J14: 90 | K14: 90 | L14: 90 | M14: 90 | N14: 75 | O14: 30
D15: T (years) | F15: =IF(F$8<>"",F14/365,"") -> 0.2465753425 | G15: 0.2465753425 | H15: 0.2465753425 | I15: 0.2465753425 | J15: 0.2465753425 | K15: 0.2465753425 | L15: 0.2465753425 | M15: 0.2465753425 | N15: 0.2054794521 | O15: 0.08219178082
D16: Price per option | F16: =IF(F$8<>"",IF(F8="underlying",F9,option_bs(F8,F9,F11,F12,F13,F10,F15)),"") -> 2.22553544 | G16: =IF(G$8<>"",IF(G8="underlying",G9,option_bs(G8,G9,G11,G12,G13,G10,G15)),"") -> 0.2849493709 | H16: =IF(H$8<>"",IF(H8="underlying",H9,option_bs(H8,H9,H11,H12,H13,H10,H15)),"") -> 0.00988048666 | I16: =IF(I$8<>"",IF(I8="underlying",I9,option_bs(I8,I9,I11,I12,I13,I10,I15)),"") -> 9.501555148 | J16: =IF(J$8<>"",IF(J8="underlying",J9,option_bs(J8,J9,J11,J12,J13,J10,J15)),"") -> 1.750299426 | K16: =IF(K$8<>"",IF(K8="underlying",K9,option_bs(K8,K9,K11,K12,K13,K10,K15)),"") -> 0.01410797425 | L16: =IF(L$8<>"",IF(L8="underlying",L9,option_bs(L8,L9,L11,L12,L13,L10,L15)),"") -> 0.5589384661 | M16: =IF(M$8<>"",IF(M8="underlying",M9,option_bs(M8,M9,M11,M12,M13,M10,M15)),"") -> 50 | N16: =IF(N$8<>"",IF(N8="underlying",N9,option_bs(N8,N9,N11,N12,N13,N10,N15)),"") -> 4.974469981 | O16: =IF(O$8<>"",IF(O8="underlying",O9,option_bs(O8,O9,O11,O12,O13,O10,O15)),"") -> 5.178111479
D17: Cost (value) | E17: =SUM(F17:O17) -> 54.92483873 | F17: =IF(F7<>"",F7*F16,"") -> 2.22553544 | G17: -0.2849493709 | H17: 0.00988048666 | I17: -9.501555148 | J17: 1.750299426 | K17: 0.01410797425 | L17: 0.5589384661 | M17: 50 | N17: 4.974469981 | O17: 5.178111479 | R17: =MMULT(X17:Y17,MINVERSE(U17:V18)) -> -4.861785942 | S17: 1.55432695 | T17: × | U17: =TRANSPOSE(N19:O20) -> 0.05788991093 | V17: 0.05947593588 | W17: = | X17: =-E19 -> -0.247439111 | Y17: =-E20 -> -0.2751828673
D18: delta | E18: =SUMPRODUCT($F$7:$O$7,F18:O18) -> 3.466067294 | F18: =IF(F8<>"",IF(F8="underlying",1,delta_bs(F8,F9,F11,F12,F13,F10,F15)),"") -> 0.5592109765 | G18: =IF(G8<>"",IF(G8="underlying",1,delta_bs(G8,G9,G11,G12,G13,G10,G15)),"") -> -0.1131652175 | H18: =IF(H8<>"",IF(H8="underlying",1,delta_bs(H8,H9,H11,H12,H13,H10,H15)),"") -> 0.006336466413 | I18: =IF(I8<>"",IF(I8="underlying",1,delta_bs(I8,I9,I11,I12,I13,I10,I15)),"") -> -0.9541852536 | J18: =IF(J8<>"",IF(J8="underlying",1,delta_bs(J8,J9,J11,J12,J13,J10,J15)),"") -> 0.4798908001 | K18: =IF(K8<>"",IF(K8="underlying",1,delta_bs(K8,K9,K11,K12,K13,K10,K15)),"") -> -0.008291000258 | L18: =IF(L8<>"",IF(L8="underlying",1,delta_bs(L8,L9,L11,L12,L13,L10,L15)),"") -> 0.2087607506 | M18: =IF(M8<>"",IF(M8="underlying",1,delta_bs(M8,M9,M11,M12,M13,M10,M15)),"") -> 1 | N18: =IF(N8<>"",IF(N8="underlying",1,delta_bs(N8,N9,N11,N12,N13,N10,N15)),"") -> -0.8199846717 | O18: =IF(O8<>"",IF(O8="underlying",1,delta_bs(O8,O9,O11,O12,O13,O10,O15)),"") -> 0.9727935015 | U18: 0.02188036698 | V18: 0.008991931635
D19: gamma | E19: =SUMPRODUCT($F$7:$O$7,F19:O19) -> 0.247439111 | F19: =IF(F8<>"",IF(F8="underlying",0,gamma_bs(F8,F9,F11,F12,F13,F10,F15)),"") -> 0.07945410855 | G19: =IF(G8<>"",IF(G8="underlying",0,gamma_bs(G8,G9,G11,G12,G13,G10,G15)),"") -> 0.03864386391 | H19: =IF(H8<>"",IF(H8="underlying",0,gamma_bs(H8,H9,H11,H12,H13,H10,H15)),"") -> 0.003593668506 | I19: =IF(I8<>"",IF(I8="underlying",0,gamma_bs(I8,I9,I11,I12,I13,I10,I15)),"") -> 0.01936602619 | J19: =IF(J8<>"",IF(J8="underlying",0,gamma_bs(J8,J9,J11,J12,J13,J10,J15)),"") -> 0.08023854579 | K19: =IF(K8<>"",IF(K8="underlying",0,gamma_bs(K8,K9,K11,K12,K13,K10,K15)),"") -> 0.004555036525 | L19: =IF(L8<>"",IF(L8="underlying",0,gamma_bs(L8,L9,L11,L12,L13,L10,L15)),"") -> 0.05783736387 | M19: =IF(M8<>"",IF(M8="underlying",0,gamma_bs(M8,M9,M11,M12,M13,M10,M15)),"") -> 0 | N19: =IF(N8<>"",IF(N8="underlying",0,gamma_bs(N8,N9,N11,N12,N13,N10,N15)),"") -> 0.05788991093 | O19: =IF(O8<>"",IF(O8="underlying",0,gamma_bs(O8,O9,O11,O12,O13,O10,O15)),"") -> 0.02188036698
D20: vega | E20: 0.2751828673 | F20: =IF(F8<>"",IF(F8="underlying",0,vega_bs(F8,F9,F11,F12,F13,F10,F15)),"") -> 0.09795712013 | G20: =IF(G8<>"",IF(G8="underlying",0,vega_bs(G8,G9,G11,G12,G13,G10,G15)),"") -> 0.04764311989 | H20: =IF(H8<>"",IF(H8="underlying",0,vega_bs(H8,H9,H11,H12,H13,H10,H15)),"") -> 0.004430550213 | I20: =IF(I8<>"",IF(I8="underlying",0,vega_bs(I8,I9,I11,I12,I13,I10,I15)),"") -> 0.0238759227 | J20: =IF(J8<>"",IF(J8="underlying",0,vega_bs(J8,J9,J11,J12,J13,J10,J15)),"") -> 0.09892423454 | K20: =IF(K8<>"",IF(K8="underlying",0,vega_bs(K8,K9,K11,K12,K13,K10,K15)),"") -> 0.005615798455 | L20: =IF(L8<>"",IF(L8="underlying",0,vega_bs(L8,L9,L11,L12,L13,L10,L15)),"") -> 0.07130633902 | M20: =IF(M8<>"",IF(M8="underlying",0,vega_bs(M8,M9,M11,M12,M13,M10,M15)),"") -> 0 | N20: =IF(N8<>"",IF(N8="underlying",0,vega_bs(N8,N9,N11,N12,N13,N10,N15)),"") -> 0.05947593588 | O20: =IF(O8<>"",IF(O8="underlying",0,vega_bs(O8,O9,O11,O12,O13,O10,O15)),"") -> 0.008991931635
D21: theta (per 1 day) | E21: -0.04686875778 | F21: =IF(F8<>"",IF(F8="underlying",0,theta_bs(F8,F9,F11,F12,F13,F10,F15)/365),"") -> -0.0137043999 | G21: =IF(G8<>"",IF(G8="underlying",0,theta_bs(G8,G9,G11,G12,G13,G10,G15)/365),"") -> -0.004642369276 | H21: =IF(H8<>"",IF(H8="underlying",0,theta_bs(H8,H9,H11,H12,H13,H10,H15)/365),"") -> -0.0005259209279 | I21: =IF(I8<>"",IF(I8="underlying",0,theta_bs(I8,I9,I11,I12,I13,I10,I15)/365),"") -> 0.003616798366 | J21: =IF(J8<>"",IF(J8="underlying",0,theta_bs(J8,J9,J11,J12,J13,J10,J15)/365),"") -> -0.01342930661 | K21: =IF(K8<>"",IF(K8="underlying",0,theta_bs(K8,K9,K11,K12,K13,K10,K15)/365),"") -> -0.0005770013883 | L21: =IF(L8<>"",IF(L8="underlying",0,theta_bs(L8,L9,L11,L12,L13,L10,L15)/365),"") -> -0.009005567551 | M21: =IF(M8<>"",IF(M8="underlying",0,theta_bs(M8,M9,M11,M12,M13,M10,M15)/365),"") -> 0 | N21: =IF(N8<>"",IF(N8="underlying",0,theta_bs(N8,N9,N11,N12,N13,N10,N15)/365),"") -> -0.002891910695 | O21: =IF(O8<>"",IF(O8="underlying",0,theta_bs(O8,O9,O11,O12,O13,O10,O15)/365),"") -> -0.007760221624
D22: rho | E22: 0.2393418925 | F22: =IF(F8<>"",IF(F8="underlying",0,rho_bs(F8,F9,F11,F12,F13,0,F15)),"") -> 0.06345619738 | G22: =IF(G8<>"",IF(G8="underlying",0,rho_bs(G8,G9,G11,G12,G13,0,G15)),"") -> -0.01465449102 | H22: =IF(H8<>"",IF(H8="underlying",0,rho_bs(H8,H9,H11,H12,H13,0,H15)),"") -> 0.0007568453441 | I22: =IF(I8<>"",IF(I8="underlying",0,rho_bs(I8,I9,I11,I12,I13,0,I15)),"") -> -0.14106777 | J22: =IF(J8<>"",IF(J8="underlying",0,rho_bs(J8,J9,J11,J12,J13,0,J15)),"") -> 0.05484881239 | K22: =IF(K8<>"",IF(K8="underlying",0,rho_bs(K8,K9,K11,K12,K13,0,K15)),"") -> -0.0010569649 | L22: =IF(L8<>"",IF(L8="underlying",0,rho_bs(L8,L9,L11,L12,L13,0,L15)),"") -> 0.02435942235 | M22: =IF(M8<>"",IF(M8="underlying",0,rho_bs(M8,M9,M11,M12,M13,0,M15)),"") -> 0 | N22: =IF(N8<>"",IF(N8="underlying",0,rho_bs(N8,N9,N11,N12,N13,0,N15)),"") -> -0.09446651418 | O22: =IF(O8<>"",IF(O8="underlying",0,rho_bs(O8,O9,O11,O12,O13,0,O15)),"") -> 0.03572183309
D23: Underlying prices | E23: Portfolio | F23: p1 | G23: p2 | H23: p3 | I23: p4 | J23: p5 | K23: p6 | L23: p7 | M23: p8 | N23: p9 | O23: p10
D24: 0 | E24: =SUM(F24:O24) -> -64.92483873 | F24: =IF(F$8<>"",(IF(F$8="call",MAX($D24-F$11,0),IF(F$8="put",MAX(F$11-$D24,0),IF(F$8="underlying",$D24)))-F$16)*F$7,"") -> -2.22553544 | G24: =IF(G$8<>"",(IF(G$8="call",MAX($D24-G$11,0),IF(G$8="put",MAX(G$11-$D24,0),IF(G$8="underlying",$D24)))-G$16)*G$7,"") -> -44.71505063 | H24: -0.00988048666 | I24: -50.49844485 | J24: -1.750299426 | K24: 39.98589203 | L24: -0.5589384661 | M24: -50 | N24: 50.02553002 | O24: -5.178111479
D25: 5 | E25: =SUM(F25:O25) -> -59.92483873 | F25: =IF(F$8<>"",(IF(F$8="call",MAX($D25-F$11,0),IF(F$8="put",MAX(F$11-$D25,0),IF(F$8="underlying",$D25)))-F$16)*F$7,"") -> -2.22553544 | G25: -39.71505063 | H25: -0.00988048666 | I25: -45.49844485 | J25: -1.750299426 | K25: 34.98589203 | L25: -0.5589384661 | M25: -45 | N25: 45.02553002 | O25: -5.178111479
D26: 10 | E26: -54.92483873 | F26: -2.22553544 | G26: -34.71505063 | H26: -0.00988048666 | I26: -40.49844485 | J26: -1.750299426 | K26: 29.98589203 | L26: -0.5589384661 | M26: -40 | N26: 40.02553002 | O26: -5.178111479 | Q26: 3 | R26: Last and least, you can complete the amount of instrument 8 to make the whole portfolio
D27: 15 | E27: -49.92483873 | F27: -2.22553544 | G27: -29.71505063 | H27: -0.00988048666 | I27: -35.49844485 | J27: -1.750299426 | K27: 24.98589203 | L27: -0.5589384661 | M27: -35 | N27: 35.02553002 | O27: -5.178111479 | R27: delta-neutral.
D28: 20 | E28: -44.92483873 | F28: -2.22553544 | G28: -24.71505063 | H28: -0.00988048666 | I28: -30.49844485 | J28: -1.750299426 | K28: 19.98589203 | L28: -0.5589384661 | M28: -30 | N28: 30.02553002 | O28: -5.178111479
D29: 25 | E29: -39.92483873 | F29: -2.22553544 | G29: -19.71505063 | H29: -0.00988048666 | I29: -25.49844485 | J29: -1.750299426 | K29: 14.98589203 | L29: -0.5589384661 | M29: -25 | N29: 25.02553002 | O29: -5.178111479
D30: 30 | E30: -34.92483873 | F30: -2.22553544 | G30: -14.71505063 | H30: -0.00988048666 | I30: -20.49844485 | J30: -1.750299426 | K30: 9.985892026 | L30: -0.5589384661 | M30: -20 | N30: 20.02553002 | O30: -5.178111479
D31: 35 | E31: -29.92483873 | F31: -2.22553544 | G31: -9.715050629 | H31: -0.00988048666 | I31: -15.49844485 | J31: -1.750299426 | K31: 4.985892026 | L31: -0.5589384661 | M31: -15 | N31: 15.02553002 | O31: -5.178111479
D32: 40 | E32: -24.92483873 | F32: -2.22553544 | G32: -4.715050629 | H32: -0.00988048666 | I32: -10.49844485 | J32: -1.750299426 | K32: -0.01410797425 | L32: -0.5589384661 | M32: -10 | N32: 10.02553002 | O32: -5.178111479
D33: 45 | E33: -14.92483873 | F33: -2.22553544 | G33: 0.2849493709 | H33: -0.00988048666 | I33: -5.498444852 | J33: -1.750299426 | K33: -0.01410797425 | L33: -0.5589384661 | M33: -5 | N33: 5.025530019 | O33: -5.178111479
D34: 50 | E34: -4.924838734 | F34: -2.22553544 | G34: 0.2849493709 | H34: -0.00988048666 | I34: -0.4984448519 | J34: -1.750299426 | K34: -0.01410797425 | L34: -0.5589384661 | M34: 0 | N34: 0.02553001892 | O34: -0.1781114792
D35: 55 | E35: 14.07516127 | F35: 2.77446456 | G35: 0.2849493709 | H35: -0.00988048666 | I35: 4.501555148 | J35: 2.249700574 | K35: -0.01410797425 | L35: -0.5589384661 | M35: 5 | N35: -4.974469981 | O35: 4.821888521
D36: 60 | E36: 44.07516127 | F36: 7.77446456 | G36: 0.2849493709 | H36: -0.00988048666 | I36: 9.501555148 | J36: 7.249700574 | K36: -0.01410797425 | L36: 4.441061534 | M36: 10 | N36: -4.974469981 | O36: 9.821888521
D37: 65 | E37: 69.07516127 | F37: 12.77446456 | G37: 0.2849493709 | H37: -0.00988048666 | I37: 9.501555148 | J37: 12.24970057 | K37: -0.01410797425 | L37: 9.441061534 | M37: 15 | N37: -4.974469981 | O37: 14.82188852
D38: 70 | E38: 99.07516127 | F38: 17.77446456 | G38: 0.2849493709 | H38: 4.990119513 | I38: 9.501555148 | J38: 17.24970057 | K38: -0.01410797425 | L38: 14.44106153 | M38: 20 | N38: -4.974469981 | O38: 19.82188852
D39: 75 | E39: 129.0751613 | F39: 22.77446456 | G39: 0.2849493709 | H39: 9.990119513 | I39: 9.501555148 | J39: 22.24970057 | K39: -0.01410797425 | L39: 19.44106153 | M39: 25 | N39: -4.974469981 | O39: 24.82188852
D40: 80 | E40: 159.0751613 | F40: 27.77446456 | G40: 0.2849493709 | H40: 14.99011951 | I40: 9.501555148 | J40: 27.24970057 | K40: -0.01410797425 | L40: 24.44106153 | M40: 30 | N40: -4.974469981 | O40: 29.82188852
D41: 85 | E41: 189.0751613 | F41: =IF(F$8<>"",(IF(F$8="call",MAX($D41-F$11,0),IF(F$8="put",MAX(F$11-$D41,0),IF(F$8="underlying",$D41)))-F$16)*F$7,"") -> 32.77446456 | G41: 0.2849493709 | H41: 19.99011951 | I41: 9.501555148 | J41: 32.24970057 | K41: -0.01410797425 | L41: 29.44106153 | M41: 35 | N41: -4.974469981 | O41: 34.82188852
D42: 90 | E42: 219.0751613 | F42: 37.77446456 | G42: 0.2849493709 | H42: 24.99011951 | I42: 9.501555148 | J42: 37.24970057 | K42: -0.01410797425 | L42: 34.44106153 | M42: 40 | N42: -4.974469981 | O42: 39.82188852
D43: 95 | E43: 249.0751613 | F43: 42.77446456 | G43: 0.2849493709 | H43: 29.99011951 | I43: 9.501555148 | J43: 42.24970057 | K43: -0.01410797425 | L43: 39.44106153 | M43: 45 | N43: -4.974469981 | O43: 44.82188852
D44: 100 | E44: 279.0751613 | F44: 47.77446456 | G44: 0.2849493709 | H44: 34.99011951 | I44: 9.501555148 | J44: 47.24970057 | K44: -0.01410797425 | L44: 44.44106153 | M44: 50 | N44: -4.974469981 | O44: 49.82188852
D45: 105 | E45: 309.0751613 | F45: 52.77446456 | G45: 0.2849493709 | H45: 39.99011951 | I45: 9.501555148 | J45: 52.24970057 | K45: -0.01410797425 | L45: 49.44106153 | M45: 55 | N45: -4.974469981 | O45: 54.82188852
D46: 110 | E46: 339.0751613 | F46: 57.77446456 | G46: 0.2849493709 | H46: 44.99011951 | I46: 9.501555148 | J46: 57.24970057 | K46: -0.01410797425 | L46: 54.44106153 | M46: 60 | N46: -4.974469981 | O46: 59.82188852
D47: 115 | E47: 369.0751613 | F47: 62.77446456 | G47: 0.2849493709 | H47: 49.99011951 | I47: 9.501555148 | J47: 62.24970057 | K47: -0.01410797425 | L47: 59.44106153 | M47: 65 | N47: -4.974469981 | O47: 64.82188852
D48: 120 | E48: 399.0751613 | F48: 67.77446456 | G48: 0.2849493709 | H48: 54.99011951 | I48: 9.501555148 | J48: 67.24970057 | K48: -0.01410797425 | L48: 64.44106153 | M48: 70 | N48: -4.974469981 | O48: 69.82188852
D49: 125 | E49: 429.0751613 | F49: 72.77446456 | G49: 0.2849493709 | H49: 59.99011951 | I49: 9.501555148 | J49: 72.24970057 | K49: -0.01410797425 | L49: 69.44106153 | M49: 75 | N49: -4.974469981 | O49: 74.82188852
D50: 130 | E50: 459.0751613 | F50: 77.77446456 | G50: 0.2849493709 | H50: 64.99011951 | I50: 9.501555148 | J50: 77.24970057 | K50: -0.01410797425 | L50: 74.44106153 | M50: 80 | N50: -4.974469981 | O50: 79.82188852
D51: 135 | E51: 489.0751613 | F51: 82.77446456 | G51: 0.2849493709 | H51: 69.99011951 | I51: 9.501555148 | J51: 82.24970057 | K51: -0.01410797425 | L51: 79.44106153 | M51: 85 | N51: -4.974469981 | O51: 84.82188852
D52: 140 | E52: 519.0751613 | F52: 87.77446456 | G52: 0.2849493709 | H52: 74.99011951 | I52: 9.501555148 | J52: 87.24970057 | K52: -0.01410797425 | L52: 84.44106153 | M52: 90 | N52: -4.974469981 | O52: 89.82188852
D53: 145 | E53: 549.0751613 | F53: 92.77446456 | G53: 0.2849493709 | H53: 79.99011951 | I53: 9.501555148 | J53: 92.24970057 | K53: -0.01410797425 | L53: 89.44106153 | M53: 95 | N53: -4.974469981 | O53: 94.82188852
D54: 150 | E54: 579.0751613 | F54: 97.77446456 | G54: 0.2849493709 | H54: 84.99011951 | I54: 9.501555148 | J54: 97.24970057 | K54: -0.01410797425 | L54: 94.44106153 | M54: 100 | N54: -4.974469981 | O54: 99.82188852
